{"text_format":"2","workbook":"xlsx","n_sheets":1,"sheets":["Munka1"],"not_rendered":{"charts":0,"images":0,"macros":0,"external_links":0,"defined_names":0,"comments":0,"pivot_tables":0},"unopened":[],"bounds":{"document_bytes":16777216,"sheet_cells":100000,"run_cost":"one","rows_first":2000,"rows_last":500,"rows_between":2000,"halvings":0,"cell_chars":16384,"cell_head_chars":4096},"cells_cut":0,"cells_raw":0,"read":"whole","date_system":"1900"}

{"sheet":"Munka1","index":0,"n_rows":53,"n_cols":5,"rows_kept":53,"cut":false,"hidden":false,"merged":[]}
["Megnevezés","Mennyiség db","Nettó egységár","Nettó ","Bruttó "]
["Hőszigetelt csappal felszerelt italadagoló – 9.4 L – 230x420x(H)470 mm - HENDI 877869",10,null,{"$f":"B2*C2","v":0},{"$f":"D2*1.27","v":0}]
["Temp-royal leveses csésze",350,null,0,0]
["Temp-royal adagtál TRP1280ST (porcelán)",350,null,0,0]
["Temp-royal adagtál tető TRRP25NG",350,null,0,0]
["AMITEK 2×3 LITERES TURMIXGÉP",1,null,0,0]
["FIMAR BOTMIXER - 60 CM SZÁR",1,null,0,0]
["FIMAR BOTMIXER - 25 CM SZÁR",1,null,0,0]
["DICK Wetzstahl fenőacél, ovális – 30cm",1,null,0,0]
["Dick Prodynamic hámozó kés 7cm zöld",6,null,0,0]
["Dick hámozó, zöldségek és gyümölcsök tiszításához, pucolásához.",4,null,0,0]
["Sütőkesztyű tűzálló 1 pár",10,null,0,0]
["Palacsintasütő, 24 cm, de Buyer, extra erős kékacél",4,null,0,0]
["Habverő, 8 szálas, 80 cm, 3 mm szálvastagság",3,null,0,0]
["Habverő 8 szálas 60 cm",3,null,0,0]
["Habverő, 8 szálas, 40 cm",4,null,0,0]
["Kosár rácsos 4. méret 36X25cm",4,null,0,0]
["Négyoldalú reszelő 24 cm",4,null,0,0]
["Csipesz, univerzális, 24 cm, sárga (főtt hús), (HACCP)",6,null,0,0]
["Fritou kanál, átmérő: 20 cm, teljes hossz: 53 cm, rozsdamentes",3,null,0,0]
["Lapátkanál, perforált, teljes hossz: 35 cm",6,null,0,0]
["Szűrőkanál, 14x47 cm, rozsdamentes",3,null,0,0]
["Kovácsolt húsvilla 14×29 cm rozsdamentes",6,null,0,0]
["Passzírozó szűrő, 10 cm, rozsdamentes",4,null,0,0]
["Műanyag tálca, GN 1/1 méret SZÜRKE",18,null,0,0]
["UV kés fertőtlenítő, sterilizáló, 230 V/25 W, 51×16×62,5 cm",1,null,0,0]
["Lapátkanál, perforált, 8×50 cm, rozsdamentes",9,null,0,0]
["Merőkanál rozsdamentes 0,3 L",30,null,0,0]
["menza kancsó 2L",100,null,0,0]
["Molnár kanál ( üstből való tálaláshoz kb. 5L)",6,null,0,0]
["DICK ProDynamic szakácskés (21 cm)",3,null,0,0]
["Kombi fenőkő 400/1000",1,null,0,0]
["Keverőtál, prémium, 10 liter, 38 cm, fehér polipropilén",4,null,0,0]
["Keverőtál, prémium, 8 liter, 32 cm, fehér polipropilén",4,null,0,0]
["Keverőtál, prémium, 4 liter, 28 cm, fehér polipropilén",4,null,0,0]
["Eco Euro Láda 40X30X22 cm, Nyitott Fogófüllel",8,null,0,0]
["Ruháskosár 80l 40x60x30cm",4,null,0,0]
["Citromfacsaró, 11,5 cm",3,null,0,0]
["1100 ml-es mérőlapát",10,null,0,0]
["Műanyag tálca, GN 1/1 méret FEHÉR",10,null,0,0]
["DICK ErgoGrip késkészlet, 6 részes",1,null,0,0]
["Henteskötény, csatos, 70×100, fehér",3,null,0,0]
["Szervírozókanál, mély, rozsdamentes, teljes hossza 44 cm, Pujadas",9,null,0,0]
["Szervírozókanál, extra erős rozsdamentes, mértékjelölt nyéllel, teljes hossza 45 cm",9,null,0,0]
["Fakanál, 25 cm, kerek",10,null,0,0]
["Fakanál, 35 cm, kerek",10,null,0,0]
["Fakanál, 50×7,5 cm, kerek",10,null,0,0]
["Fakanál, 150×10,5 cm, evező, lapát",10,null,0,0]
["Fakanál, 120×12,5 cm, kerek",10,null,0,0]
["Fakanál, 120×11 cm, evező, lapát",6,null,0,0]
["Fakanál, 90 cm, kerek",10,null,0,0]
["Merőkanál rozsdamentes 0,25 L",20,null,0,0]
["Szeged kisértékű 2025:",null,null,{"$f":"SUM(D2:D52)","v":0},0]